Workbook

Sheet Sammanfattning av månadsbudget
B1: FÖRETAGETS NAMN
B2: MÅNADSBUDGET | E2: Datum
B4: BUDGETSUMMOR | C4: BERÄKNADE | D4: FAKTISKA | E4: SKILLNAD
B5: Intäkter | C5: =Intäkter[[#Totals],[BERÄKNADE]] -> 63,300.00 | D5: =Intäkter[[#Totals],[FAKTISKA]] -> 57,450.00 | E5: =Summor[[#This Row],[FAKTISKA]]-Summor[[#This Row],[BERÄKNADE]] -> -5,850.00
B6: Utgifter | C6: =Rörelsekostnader[[#Totals],[BERÄKNADE]]+Personalkostnader[[#Totals],[BERÄKNADE]] -> 54,500.00 | D6: =Rörelsekostnader[[#Totals],[FAKTISKA]]+Personalkostnader[[#Totals],[FAKTISKA]] -> 49,630.00 | E6: =Summor[[#This Row],[BERÄKNADE]]-Summor[[#This Row],[FAKTISKA]] -> 4,870.00
B7: Saldo (intäkter minus utgifter) | C7: =C5-C6 -> 8,800.00 | D7: =D5-D6 -> 7,820.00 | E7: =Summor[[#Totals],[FAKTISKA]]-Summor[[#Totals],[BERÄKNADE]] -> -980.00
B10: VILKA ÄR MINA 5 HÖGSTA RÖRELSEKOSTNADER?
B11: UTGIFTER | C11: BELOPP | D11: % AV UTGIFTER | E11: 15 % AVDRAG
B12: =INDEX(Rörelsekostnader[],MATCH(Top5Expenses[[#This Row],[BELOPP]],Rörelsekostnader[5 HÖGSTA BELOPP],0),1) -> Underhåll eller reparationer | C12: =LARGE(Rörelsekostnader[5 HÖGSTA BELOPP],1) -> 4,600.00 | D12: =Top5Expenses[[#This Row],[BELOPP]]/$D$6 -> 9.3% | E12: =Top5Expenses[[#This Row],[BELOPP]]*0.15 -> 690.00
B13: =INDEX(Rörelsekostnader[],MATCH(Top5Expenses[[#This Row],[BELOPP]],Rörelsekostnader[5 HÖGSTA BELOPP],0),1) -> Material | C13: =LARGE(Rörelsekostnader[5 HÖGSTA BELOPP],2) -> 4,500.00 | D13: =Top5Expenses[[#This Row],[BELOPP]]/$D$6 -> 9.1% | E13: =Top5Expenses[[#This Row],[BELOPP]]*0.15 -> 675.00
B14: =INDEX(Rörelsekostnader[],MATCH(Top5Expenses[[#This Row],[BELOPP]],Rörelsekostnader[5 HÖGSTA BELOPP],0),1) -> Hyra eller amortering | C14: =LARGE(Rörelsekostnader[5 HÖGSTA BELOPP],3) -> 4,500.00 | D14: =Top5Expenses[[#This Row],[BELOPP]]/$D$6 -> 9.1% | E14: =Top5Expenses[[#This Row],[BELOPP]]*0.15 -> 675.00
B15: =INDEX(Rörelsekostnader[],MATCH(Top5Expenses[[#This Row],[BELOPP]],Rörelsekostnader[5 HÖGSTA BELOPP],0),1) -> Skatter | C15: =LARGE(Rörelsekostnader[5 HÖGSTA BELOPP],4) -> 3,200.00 | D15: =Top5Expenses[[#This Row],[BELOPP]]/$D$6 -> 6.4% | E15: =Top5Expenses[[#This Row],[BELOPP]]*0.15 -> 480.00
B16: =INDEX(Rörelsekostnader[],MATCH(Top5Expenses[[#This Row],[BELOPP]],Rörelsekostnader[5 HÖGSTA BELOPP],0),1) -> Reklam | C16: =LARGE(Rörelsekostnader[5 HÖGSTA BELOPP],5) -> 2,500.00 | D16: =Top5Expenses[[#This Row],[BELOPP]]/$D$6 -> 5.0% | E16: =Top5Expenses[[#This Row],[BELOPP]]*0.15 -> 375.00
B17: Summa | C17: =SUBTOTAL(109,Top5Expenses[BELOPP]) -> 19,300.00 | D17: =SUBTOTAL(109,Top5Expenses[% AV UTGIFTER]) -> 38.9% | E17: =SUBTOTAL(109,Top5Expenses[15 % AVDRAG]) -> 2,895.00

Sheet Intäkter
B1: =FÖRETAGETSNAMN -> FÖRETAGETS NAMN
B2: =BUDGET_Rubrik -> MÅNADSBUDGET
B4: INTÄKTER | C4: BERÄKNADE | D4: FAKTISKA | E4: 5 HÖGSTA BELOPP | F4: SKILLNAD
B5: Nettoförsäljning | C5: 60,000.00 | D5: 54,000.00 | E5: =Intäkter[[#This Row],[FAKTISKA]]+(10^-6)*ROW(Intäkter[[#This Row],[FAKTISKA]]) -> 54,000.00 | F5: =Intäkter[[#This Row],[FAKTISKA]]-Intäkter[[#This Row],[BERÄKNADE]] -> -6,000.00
B6: Ränteintäkter | C6: 3,000.00 | D6: 3,000.00 | E6: =Intäkter[[#This Row],[FAKTISKA]]+(10^-6)*ROW(Intäkter[[#This Row],[FAKTISKA]]) -> 3,000.00 | F6: =Intäkter[[#This Row],[FAKTISKA]]-Intäkter[[#This Row],[BERÄKNADE]] -> 0.00
B7: Tillgångsförsäljning (vinst/förlust) | C7: 300.00 | D7: 450.00 | E7: =Intäkter[[#This Row],[FAKTISKA]]+(10^-6)*ROW(Intäkter[[#This Row],[FAKTISKA]]) -> 450.00 | F7: =Intäkter[[#This Row],[FAKTISKA]]-Intäkter[[#This Row],[BERÄKNADE]] -> 150.00
B8: Totala intäkter | C8: =SUBTOTAL(109,Intäkter[BERÄKNADE]) -> 63,300.00 | D8: =SUBTOTAL(109,Intäkter[FAKTISKA]) -> 57,450.00 | F8: =SUBTOTAL(109,Intäkter[SKILLNAD]) -> -5,850.00

Sheet Personalkostnader
B1: =FÖRETAGETSNAMN -> FÖRETAGETS NAMN
B2: =BUDGET_Rubrik -> MÅNADSBUDGET
B4: PERSONALKOSTNADER | C4: BERÄKNADE | D4: FAKTISKA | E4: 5 HÖGSTA BELOPP | F4: SKILLNAD
B5: Lön | C5: 9,500.00 | D5: 9,600.00 | E5: =Personalkostnader[[#This Row],[FAKTISKA]]+(10^-6)*ROW(Personalkostnader[[#This Row],[FAKTISKA]]) -> 9,600.00 | F5: =Personalkostnader[[#This Row],[BERÄKNADE]]-Personalkostnader[[#This Row],[FAKTISKA]] -> -100.00
B6: Anställningsförmåner | C6: 4,000.00 | D6: 0.00 | E6: =Personalkostnader[[#This Row],[FAKTISKA]]+(10^-6)*ROW(Personalkostnader[[#This Row],[FAKTISKA]]) -> 0.00 | F6: =Personalkostnader[[#This Row],[BERÄKNADE]]-Personalkostnader[[#This Row],[FAKTISKA]] -> 4,000.00
B7: Provision | C7: 5,000.00 | D7: 4,500.00 | E7: =Personalkostnader[[#This Row],[FAKTISKA]]+(10^-6)*ROW(Personalkostnader[[#This Row],[FAKTISKA]]) -> 4,500.00 | F7: =Personalkostnader[[#This Row],[BERÄKNADE]]-Personalkostnader[[#This Row],[FAKTISKA]] -> 500.00
B8: Totala personalkostnader | C8: =SUBTOTAL(109,Personalkostnader[BERÄKNADE]) -> 18,500.00 | D8: =SUBTOTAL(109,Personalkostnader[FAKTISKA]) -> 14,100.00 | F8: =SUBTOTAL(109,Personalkostnader[SKILLNAD]) -> 4,400.00

Sheet Rörelsekostnader
B1: =FÖRETAGETSNAMN -> FÖRETAGETS NAMN
B2: =BUDGET_Rubrik -> MÅNADSBUDGET
B4: RÖRELSEKOSTNADER | C4: BERÄKNADE | D4: FAKTISKA | E4: 5 HÖGSTA BELOPP | F4: SKILLNAD
B5: Reklam | C5: 3,000.00 | D5: 2,500.00 | E5: =Rörelsekostnader[[#This Row],[FAKTISKA]]+(10^-6)*ROW(Rörelsekostnader[[#This Row],[FAKTISKA]]) -> 2,500.00 | F5: =Rörelsekostnader[[#This Row],[BERÄKNADE]]-Rörelsekostnader[[#This Row],[FAKTISKA]] -> 500.00
B6: Osäkra fordringar | C6: 2,000.00 | D6: 2,000.00 | E6: =Rörelsekostnader[[#This Row],[FAKTISKA]]+(10^-6)*ROW(Rörelsekostnader[[#This Row],[FAKTISKA]]) -> 2,000.00 | F6: =Rörelsekostnader[[#This Row],[BERÄKNADE]]-Rörelsekostnader[[#This Row],[FAKTISKA]] -> 0.00
B7: Kassarabatter | C7: 1,500.00 | D7: 2,175.00 | E7: =Rörelsekostnader[[#This Row],[FAKTISKA]]+(10^-6)*ROW(Rörelsekostnader[[#This Row],[FAKTISKA]]) -> 2,175.00 | F7: =Rörelsekostnader[[#This Row],[BERÄKNADE]]-Rörelsekostnader[[#This Row],[FAKTISKA]] -> -675.00
B8: Leveranskostnader | C8: 2,000.00 | D8: 1,500.00 | E8: =Rörelsekostnader[[#This Row],[FAKTISKA]]+(10^-6)*ROW(Rörelsekostnader[[#This Row],[FAKTISKA]]) -> 1,500.00 | F8: =Rörelsekostnader[[#This Row],[BERÄKNADE]]-Rörelsekostnader[[#This Row],[FAKTISKA]] -> 500.00
B9: Avskrivning | C9: 1,000.00 | D9: 1,000.00 | E9: =Rörelsekostnader[[#This Row],[FAKTISKA]]+(10^-6)*ROW(Rörelsekostnader[[#This Row],[FAKTISKA]]) -> 1,000.00 | F9: =Rörelsekostnader[[#This Row],[BERÄKNADE]]-Rörelsekostnader[[#This Row],[FAKTISKA]] -> 0.00
B10: Avgifter och prenumerationer | C10: 500.00 | D10: 525.00 | E10: =Rörelsekostnader[[#This Row],[FAKTISKA]]+(10^-6)*ROW(Rörelsekostnader[[#This Row],[FAKTISKA]]) -> 525.00 | F10: =Rörelsekostnader[[#This Row],[BERÄKNADE]]-Rörelsekostnader[[#This Row],[FAKTISKA]] -> -25.00
B11: Försäkring | C11: 1,300.00 | D11: 1,275.00 | E11: =Rörelsekostnader[[#This Row],[FAKTISKA]]+(10^-6)*ROW(Rörelsekostnader[[#This Row],[FAKTISKA]]) -> 1,275.00 | F11: =Rörelsekostnader[[#This Row],[BERÄKNADE]]-Rörelsekostnader[[#This Row],[FAKTISKA]] -> 25.00
B12: Ränta | C12: 2,000.00 | D12: 2,200.00 | E12: =Rörelsekostnader[[#This Row],[FAKTISKA]]+(10^-6)*ROW(Rörelsekostnader[[#This Row],[FAKTISKA]]) -> 2,200.00 | F12: =Rörelsekostnader[[#This Row],[BERÄKNADE]]-Rörelsekostnader[[#This Row],[FAKTISKA]] -> -200.00
B13: Juridiskt och revision | C13: 1,000.00 | D13: 800.00 | E13: =Rörelsekostnader[[#This Row],[FAKTISKA]]+(10^-6)*ROW(Rörelsekostnader[[#This Row],[FAKTISKA]]) -> 800.00 | F13: =Rörelsekostnader[[#This Row],[BERÄKNADE]]-Rörelsekostnader[[#This Row],[FAKTISKA]] -> 200.00
B14: Underhåll eller reparationer | C14: 4,500.00 | D14: 4,600.00 | E14: =Rörelsekostnader[[#This Row],[FAKTISKA]]+(10^-6)*ROW(Rörelsekostnader[[#This Row],[FAKTISKA]]) -> 4,600.00 | F14: =Rörelsekostnader[[#This Row],[BERÄKNADE]]-Rörelsekostnader[[#This Row],[FAKTISKA]] -> -100.00
B15: Kontorsmaterial | C15: 800.00 | D15: 750.00 | E15: =Rörelsekostnader[[#This Row],[FAKTISKA]]+(10^-6)*ROW(Rörelsekostnader[[#This Row],[FAKTISKA]]) -> 750.00 | F15: =Rörelsekostnader[[#This Row],[BERÄKNADE]]-Rörelsekostnader[[#This Row],[FAKTISKA]] -> 50.00
B16: Porto | C16: 400.00 | D16: 350.00 | E16: =Rörelsekostnader[[#This Row],[FAKTISKA]]+(10^-6)*ROW(Rörelsekostnader[[#This Row],[FAKTISKA]]) -> 350.00 | F16: =Rörelsekostnader[[#This Row],[BERÄKNADE]]-Rörelsekostnader[[#This Row],[FAKTISKA]] -> 50.00
B17: Hyra eller amortering | C17: 4,100.00 | D17: 4,500.00 | E17: =Rörelsekostnader[[#This Row],[FAKTISKA]]+(10^-6)*ROW(Rörelsekostnader[[#This Row],[FAKTISKA]]) -> 4,500.00 | F17: =Rörelsekostnader[[#This Row],[BERÄKNADE]]-Rörelsekostnader[[#This Row],[FAKTISKA]] -> -400.00
B18: Försäljningsutgifter | C18: 350.00 | D18: 400.00 | E18: =Rörelsekostnader[[#This Row],[FAKTISKA]]+(10^-6)*ROW(Rörelsekostnader[[#This Row],[FAKTISKA]]) -> 400.00 | F18: =Rörelsekostnader[[#This Row],[BERÄKNADE]]-Rörelsekostnader[[#This Row],[FAKTISKA]] -> -50.00
B19: Frakt och lager | C19: 900.00 | D19: 840.00 | E19: =Rörelsekostnader[[#This Row],[FAKTISKA]]+(10^-6)*ROW(Rörelsekostnader[[#This Row],[FAKTISKA]]) -> 840.00 | F19: =Rörelsekostnader[[#This Row],[BERÄKNADE]]-Rörelsekostnader[[#This Row],[FAKTISKA]] -> 60.00
B20: Material | C20: 5,000.00 | D20: 4,500.00 | E20: =Rörelsekostnader[[#This Row],[FAKTISKA]]+(10^-6)*ROW(Rörelsekostnader[[#This Row],[FAKTISKA]]) -> 4,500.00 | F20: =Rörelsekostnader[[#This Row],[BERÄKNADE]]-Rörelsekostnader[[#This Row],[FAKTISKA]] -> 500.00
B21: Skatter | C21: 3,000.00 | D21: 3,200.00 | E21: =Rörelsekostnader[[#This Row],[FAKTISKA]]+(10^-6)*ROW(Rörelsekostnader[[#This Row],[FAKTISKA]]) -> 3,200.00 | F21: =Rörelsekostnader[[#This Row],[BERÄKNADE]]-Rörelsekostnader[[#This Row],[FAKTISKA]] -> -200.00
B22: Telefon | C22: 250.00 | D22: 280.00 | E22: =Rörelsekostnader[[#This Row],[FAKTISKA]]+(10^-6)*ROW(Rörelsekostnader[[#This Row],[FAKTISKA]]) -> 280.00 | F22: =Rörelsekostnader[[#This Row],[BERÄKNADE]]-Rörelsekostnader[[#This Row],[FAKTISKA]] -> -30.00
B23: Kraftförsörjning | C23: 1,400.00 | D23: 1,385.00 | E23: =Rörelsekostnader[[#This Row],[FAKTISKA]]+(10^-6)*ROW(Rörelsekostnader[[#This Row],[FAKTISKA]]) -> 1,385.00 | F23: =Rörelsekostnader[[#This Row],[BERÄKNADE]]-Rörelsekostnader[[#This Row],[FAKTISKA]] -> 15.00
B24: Övrigt | C24: 1,000.00 | D24: 750.00 | E24: =Rörelsekostnader[[#This Row],[FAKTISKA]]+(10^-6)*ROW(Rörelsekostnader[[#This Row],[FAKTISKA]]) -> 750.00 | F24: =Rörelsekostnader[[#This Row],[BERÄKNADE]]-Rörelsekostnader[[#This Row],[FAKTISKA]] -> 250.00
B25: Totala rörelsekostnader | C25: =SUBTOTAL(109,Rörelsekostnader[BERÄKNADE]) -> 36,000.00 | D25: =SUBTOTAL(109,Rörelsekostnader[FAKTISKA]) -> 35,530.00 | F25: =SUBTOTAL(109,Rörelsekostnader[SKILLNAD]) -> 470.00
